{"text_format":"1","workbook":"xlsx","n_sheets":5,"sheets":["Specification prix","Offre","offre USD","Devise","Pour tester"],"not_rendered":{"charts":0,"images":6,"macros":1,"external_links":0,"defined_names":7,"comments":0,"pivot_tables":0},"unopened":[],"bounds":{"document_bytes":16777216,"sheet_cells":100000,"rows_first":2000,"rows_last":500,"rows_between":2000,"halvings":0,"cell_chars":16384,"cell_head_chars":4096},"cells_cut":0,"cells_raw":0,"read":"whole","date_system":"1900"}

{"sheet":"Specification prix","index":0,"n_rows":120,"n_cols":8,"rows_kept":120,"cut":false,"hidden":false,"merged":[[43,18,46,18],[43,14,46,14],[43,15,46,15],[43,16,46,16],[43,17,46,17],[7,0,7,5],[106,5,106,7],[52,1,55,1],[52,2,55,2],[52,3,55,3],[52,4,55,4],[102,3,103,3],[104,3,105,3],[36,2,39,2],[86,0,86,5],[40,1,43,1],[6,0,6,5],[3,0,3,5],[109,5,109,7],[72,0,72,5],[79,0,79,5],[107,5,107,7],[108,5,108,7],[15,3,16,3],[15,4,16,4],[15,5,16,5],[44,1,47,1],[62,0,62,5],[17,5,18,5],[17,3,18,3],[17,4,18,4],[17,2,18,2],[118,2,118,4],[44,3,47,3],[36,3,39,3],[116,2,116,4],[96,0,96,5],[104,2,105,2],[52,5,55,5],[40,5,43,5],[119,2,119,4],[36,4,39,4],[44,4,47,4],[36,5,39,5],[102,2,103,2],[115,2,115,4],[40,4,43,4],[114,2,114,4],[104,4,105,4],[63,0,63,5],[110,5,110,7],[102,5,103,5],[104,5,105,5],[102,4,103,4],[40,3,43,3],[117,2,117,4],[0,0,0,3],[44,5,47,5],[48,1,51,1],[44,2,47,2],[40,2,43,2],[48,2,51,2],[36,1,39,1],[48,3,51,3],[48,4,51,4],[48,5,51,5],[15,2,16,2],[28,0,28,5],[29,0,29,5],[2,0,2,5],[21,0,21,5],[35,0,35,5]]}
["XXXXXXXXXXXXXXXXX"]
["No.","Description","EURO  \nex works ","Qtity","Total","Sales Comments"]
["Type of feature / option:  Std = Standard,    NA = Not available,    OR = On request,      \nSelection only possible in the GREY boxes"]
["XXXXXXXXXXXXXXXXXX"]
["A2","Model",100,0,{"$f":"C5*D5","v":0},"Base"]
[" ","XXXXXXXXXXXXXXXXXXXXXXXXXXXXXXXXXXXXXXXXXXXXXXXXXXXXXXXXXXXXXXXXXXXXXXXXXXXXXXXXXXXXXXXXXXXXXXXXXXXXXXXXXXXXXXXXXXXXXXXXXXXXXXXXXXXXXXXXXXXXXXXXXXXXXXXXXXXXXXXXXXXXXXXXXXXXXXXXXXXXXXXXXXXXXXXXXXXXXXXXXXXXXXXXXXXXXXXXXXXXXXXXXXXXXXXXXXXXXXXXXXXXXXXXXXXXXXXXXXXXXXXXXXXXXXXXXXXXXXXXXXXXXXXXXXXXXXXXXXXXXXXXXXXXXXXXXXXXXXXXXXXXXX"]
[]
["Feeding options :"]
[100,"PU infeed belts for cotton and no slippery garment","Std",1,null,"Standard\nPU = normal grip"]
[102,"Silicone infeed belts for tacky grip instead of standard belts (polyester and slippery garment)",10,0,{"$f":"C10*D10","v":0},"High grip for Polyester"]
[200,"Continus runing infeed conveyor ","Std",1,null,"Singlet and very short sleeves"]
[201,"Removing - Automatic infeed belts start with sensor and adjustable delay ",-10,0,{"$f":"C12*D12","v":0},"Higher feeding speed"]
[202,"Removing - Push button/adjustable delay to start infeed belts ",-10,0,{"$f":"C13*D13","v":0},"Sensitif to feed garment"]
[203,"Removing - Reject push button",-10,0,{"$f":"C14*D14","v":0},"manual reject by operator"]
[520,"Automatic folding and stacking with size measuring  sensor measuring individual garment length (Auto channel selection) ","Std",1,null,"random feeding of different sizes"]
[521,"Sorting with 4 photocells instead of size measurment (when different garment sizes have same length)",30,0,{"$f":"C16*D16","v":0},"Manual channel selection when different sizes have same length. \n\nCannot be installed together with option 522",true]
[null,null,null,null,null,null,false]
[522,"Direct adressing of stacker by 3 vertical photocells",30,1,{"$f":"C18*D18","v":30},"Cannot be installed together with option 521"]
[null,null,null,null,null,null,true]
[528,"2nd stop function at feeding to correct or readjust rear of long garments ",10,0,{"$f":"C20*D20","v":0},"Long garments"]
[]
["Lateral fold options :"]
[101,"1 single PU belt in lateral fold instead of dual PU belts (for white cotton garment)",-20,0,{"$f":"C23*D23","v":0},"One wide belt only"]
[103,"Dual PU Belts and reflective sensor in Lateral instead of single PU belts ","Std",1,null,"Standard\nPU = normal grip"]
[104,"Dual High grip silicone belts and reflective sensor in lateral instead of single or double PU belts (slippery and color garment)",10,1,{"$f":"C25*D25","v":10},"Silicone = high grip"]
[105,"Removing - High/low pressure in lateral fold for fine tuning of sensitive or heavy/stiff garment like hoddies",-10,1,{"$f":"C26*D26","v":-10},"Air pulses fine tuning"]
[109,"1/6 width reduction of extra wide garment",10,0,{"$f":"C27*D27","v":0},"NA"]
[110,"Removing - Lateral adjustable deflector for thin/thick/stiff material like 100% polyester to hoddies",-10,0,{"$f":"C28*D28","v":0},"for Hoodies"]
[]
["Cross fold options :"]
[106,"Removing - 1st Crossfold gap auto positionning via setup in recipes   ",-10,0,{"$f":"C31*D31","v":0},"adapt to material thickness"]
[107,"Removing - 2nd crossfold swingarm automatic opening for thick item folding",-20,1,{"$f":"C32*D32","v":-20},"For Hoodies"]
[108,"Removing - of 2nd crossfold swingarm forcing in upper position via touchscreen panel ",-5,0,{"$f":"C33*D33","v":0},"Polyester"]
[109,"Automatic reject of unexpected wide items","Std",1,null,"Standard"]
[]
["Stacking options:"]
[410,"Drop stacker 1 x 1",-15,0,{"$f":"D37*C37","v":0},"1 drop stacker\nIn replacement of 412",false,false]
[null,null,null,null,null,null,false,false]
[]
[]
[411,"Drop stacker 2 x 1",-15,0,{"$f":"D41*C41","v":0},"2 drop stackers\nIn replacement of 412",false,false]
[null,null,null,null,null,null,false,false]
[]
[]
[412,"Drop stacker 3 x1","Std",1,null,"Standard\n3 drop stackers",false,false]
[null,null,null,null,null,null,false,false]
[]
[]
[413,"Drop stacker 4 x1","NA",0,null,"4 drop stackers\nIn replacement of 412",false,false]
[null,null,null,null,null,null,false,false]
[]
[]
[401,"Drop stacker 0 x 1",-10,1,{"$f":"D53*C53","v":-10},"Inline exit with 1.5m/5ft delivery belt\n",false,false]
[null,null,null,null,null,null,true,true]
[]
[]
[420,"One Lift stacker instead of one drop stacker (option 410 or 411 or 412 must be selected) handle small items or underwear or sensitive to stack items  ",30,1,{"$f":"C57*D57","v":30},"Only one lift stacker per machine not compatible with 401"]
[430,"Removing - Delivery belt for side or inline delivery with 1.5 meter/5ft accumulator ",-20,0,{"$f":"C58*D58","v":0},"No delivery belt"]
[431,"Delivery belt for side or inline delivery with 3 meters/10ft accumulator instead of 5ft",10,0,{"$f":"C59*D59","v":0},"in replacement of 430 or 401"]
[440,"3 meters/10ft accumulator with control box",20,0,{"$f":"C60*D60","v":0},"Buffer after delivery belt"]
[450,"Sensor at delivery belt end (belt full)",5,0,null,"Stop the infeed when belt is full"]
[null,"Roller conveyor",5,0,{"$f":"D62*C62","v":0},"Per 3 meters/10ft"]
[]
["Panels & communication:"]
[500,"10 recipes instead of 50",-10,0,{"$f":"C65*D65","v":0},"Reduced recipes"]
[505,"50 recipes ","Std",0,0,"Standard"]
[508,"120 recipes instead of 50 ",5,1,5,"Extended recipes"]
[510,"Removing - of Productivity lights",-5,1,-5,"Operator feedbacl of real productivity"]
[530,"Backup via USB connector + battery (hold memory when machine is power off)","Std",1,null,"backup of recipes"]
[531,"Master/slave of 2 machines with one common delivery belt",10,0,0,"snychronisation of 2 machines"]
[532,"Ethernet interface for datas collection",10,0,0,"For production datas transfer"]
[]
["Labeler and stiffener:"]
[300,"Size labeler integrated in feeding (preprinted label)",15,1,{"$f":"C74*D74","v":15},"Insertion of size label during folding"]
[320,"external labeler (preprinted label)",10,1,{"$f":"C75*D75","v":10},"Insertion of sticker after folding"]
[321,"Support for external labeler",2,1,{"$f":"C76*D76","v":2},"for 320"]
[322,"3 meter conveyor for external labeler (320)",4,1,{"$f":"C77*D77","v":4},"for 320"]
[350,"Stiffener inserter integrated in lateral fold",14,1,{"$f":"C78*D78","v":14},"Insertion of stiffener inside the fold"]
[]
["Bagging solution:"]
[600,"Automatic L-Sealer LS56 with 40 recipes",39,0,{"$f":"C81*D81","v":0},"full automatic L-sealer"]
[609,"Gap closing conveyor",48,0,null,"for polyester"]
[610,"Punch hole for LS56",18,0,{"$f":"C83*D83","v":0},"remove air in the bag"]
[630,"Semi-automatic L-Sealer",10,0,{"$f":"C84*D84","v":0}]
[720,"Sapre part kit for LS56",2,0,{"$f":"C85*D85","v":0},"for 600"]
[]
["General:"]
[null,null,null,null,{"$f":"C88*D88","v":0}]
[900,"Voltage: 3 x 200/240 V + PE, 50/60 Hz, +/- 5 %","Std",0,null,null,true]
[905,"Voltage: 3 x 400 V + PE, 50/60 Hz, +/- 5 %","Std",0,null,null,false]
[910,null,14,0,{"$f":"C91*D91","v":0},"On request",false]
[915,null,14,0,{"$f":"C92*D92","v":0},"On request",false]
[]
[null,"Spare parts kit small for T-Apparel",7,0,{"$f":"C94*D94","v":0}]
[null,"Spare parts kit large for T-Apparel",2,0,{"$f":"C95*D95","v":0}]
[]
["Installation & setup"]
[980,"Service Engineer - working day",8,1,{"$f":"C98*D98","v":8}]
[981,"Service Engineer - travel time (hour)",10,1,{"$f":"C99*D99","v":10}]
[982,"Air Ticket",15,0,{"$f":"C100*D100","v":0}]
[983,"test",0,0,{"$f":"C101*D101","v":0}]
[]
[990,"Other costs ",1,0,{"$f":"C103*D103","v":0}]
[null,null,null,null,{"$f":"C104*D104","v":0}]
[991,"Extra costs",0,0,{"$f":"C105*D105","v":0}]
[null,null,null,null,{"$f":"C106*D106","v":0}]
[null,"Total List price in EUROS",null,null,{"$f":"SUM(E5:E106)","v":93}]
[null,"Discount [%]",null,30,{"$f":"E107*D108/100","v":27.9}]
[null,"Crating in closed wood box (air or truck)",100,0,{"$f":"C109*D109","v":0}]
[null,"Pallet for 20\" container (Up to 2 machines/pallet)",110,0,{"$f":"C110*D110","v":0}]
[null,"Shipping cost",200,0,{"$f":"C111*D111","v":0},"CFR"]
[null,"Total in EURO, ex works Belgium/Holland",null,"Euros",{"$f":"E107-E108+E109+E110+E111","v":65.099999999999994}]
[null,"Total in USD, (exch. rate automatically actualised)",null,"USD",{"$f":"E112*Devise!G3","v":72.835832999999994}]
[]
[null,"Distributor"]
[null,"Customer"]
[null,"Customer Address"]
[null,"Customer Order number"]
[null,"Delivery date (dd.mm.yy)"]
[null,"Order date (dd.mm.yy)"]

{"sheet":"Offre","index":1,"n_rows":62,"n_cols":6,"rows_kept":62,"cut":false,"hidden":false,"merged":[[36,0,40,5],[45,0,45,5],[51,0,55,5],[57,0,57,5],[0,4,0,5],[11,0,12,5],[15,0,18,5]]}
[]
[null,"Company name",null,"XXXXXXXXXXXXXXX",null,"OFFRE"]
[null,"Attn.",null,"XXXXXXXXXXXXXXX",null,"(file name here)"]
[null,"Street address",null,"XXXXXXXXXXXXXXX"]
[null,"Zip",null,"XXXXX"]
[null,"City",null,"XXXXXXXXXXXXXXXXXXXXX"]
[null,"Country",null,"XXXXXXXXXXXXXXXXXXXXXXXXX",null,"(actual date)"]
[null,"Email",null,"XXXXXXXXXXXXX"]
[null,"Tel",null,"XXXXXXXXXXX"]
[]
[]
["Dear Sir,\nI am pleased to present the following proposal for XXXXXXXXXXXXXX:  "]
[]
[]
["Note:"]
["Configuration for one XXXXXXXXXXXXXXXXXX "]
[]
[]
[]
[]
["Pos","Nr.",null,"Description","Qtité","Valeur"]
[1]
[2]
[3]
[4]
[null,null,null,"Sum",null,{"$f":"SUM(F22:F25)","v":0}]
[null,null,null,"Discount",0.1,{"$f":"-(F26*E27)","v":0}]
[null,null,null,"Number of units",null,2]
[null,null,null,"Packing cost",null,20]
[null,null,null,"Transport cost",null,20]
[null,null,null,"TOTAL to pay",null,{"$f":"(F26+F27)*F28+F29+F30","v":40}]
[]
["XXXXXXXXXXXX"]
["XXXXXXXXXXXXXXXXXXXXXXXXXXXXXXXXXXXXXXXXXXXXXXXXXXXX"]
[]
["XXXXXXXX"]
["XXXXXXXXXXXXXXXXXXXXXXXXXXXXXXXXXXXXXXXXXXXXXXXXXXXXXXXXXXXXXXXXXXXXXXXXXXXXXXXXXXXXXXXXXXXXXXXXXXXXXXXXXXXXXXXXXXXXXXXXXXXXXXXXXXXXXXXXXXXXXXXXXXXXXXXXXXXXXXXXXXXXXXXXXXXXXXXXXXXXXXXXXXXXXXXXXXXXXXXXXXXXXXXXXXXXXXXXXXXXXXXXXXXXXXXXXXXXXXXXXXXXXXXXXXXXXXXXXXXXXXXXXXXXXXXXXXXXXXXXXXXXXXXXXXXXXXXXXXXXXXXXXXXXXXXXXXXXXXXXXXXXXXXXXXXXXXXXXXXXXXXXXXXXXXXXXXXXXXXXXXXXXXXXXXXXXXXXXXXXXXXXXXXXXXXXXXXXXXXX"]
[]
[]
[]
[]
[]
["XXXXXXXXXXXXXXXXXXXXX"]
["XXXXXXXXXXXXXXXXXXXXXXXXXXXXXXXX"]
["XXXXXXXXXXXXXXXXXXXXXXXXXXX"]
["XXXXXXXXXXXXXXXXXXXXXXXXXXXXXXXX"]
[]
["XXXXXXX"]
["XXXXXXXXXXXXXXX"]
[]
["XXXXXXXXXXXXXXXXXXXXXXXXXXXXXXX"]
["XXXXXXXXXXXXXXXXXXXXXXXXXXXXXXXXXXXXXXXXXXXXXXXXXXXXXXXXXXXXXXXXXXXXXXXXXXXXXXXXXXXXXXXXXXXXXXXXXXXXXXXXXXXXXXXXXXXXXXXXXXXXXXXXXXXXXXXXXXXXXXXXXXXXXXXXXXXXXXXXXXXXXXXXXXXXXXXXXXXXXXXXXXXXXXXXXXXXXXXXXXXXXXXXXXXXXXXXXXXXXXXXXXXXXXXXXXXXXXXXXXXXXXXXXXXXXXXXXXXXXXXXXXXXXXXXXXXXXXXXXXXXXXXXXXXXXXXXXXXXXXXX"]
[]
[]
[]
[]
[]
["XXXXXXXXXXXXXXXXXXXXXXXXXXXXXXXXXXXX"]
[]
["Best Rgds,"]
[]
["XXXXXXXXXXX"]

{"sheet":"offre USD","index":2,"n_rows":62,"n_cols":6,"rows_kept":62,"cut":false,"hidden":false,"merged":[[57,0,57,5],[0,4,0,5],[11,0,12,5],[15,0,18,5],[36,0,40,5],[45,0,45,5],[51,0,55,5]]}
[]
[null,"Company name",null,"XXXXXXXXXXXXXXX",null,"OFFRE"]
[null,"Attn.",null,"XXXXXXXXXXXXXXX",null,"(file name here)"]
[null,"Street address",null,"XXXXXXXXXXXXXXX"]
[null,"Zip",null,"XXXXX"]
[null,"City",null,"XXXXXXXXXXXXXXXXXXXXX"]
[null,"Country",null,"XXXXXXXXXXXXXXXXXXXXXXXXX",null,"(actual date)"]
[null,"Email",null,"XXXXXXXXXXXXX"]
[null,"Tel",null,"XXXXXXXXXXX"]
[]
[]
["Dear Sir,\nI am pleased to present the following proposal for XXXXXXXXXXXXXX:  "]
[]
[]
["Note:"]
["Configuration for one XXXXXXXXXXXXXXXXXX "]
[]
[]
[]
[]
["Pos","Nr.",null,"Description","Qtité","Valeur"]
[1]
[2]
[3]
[4]
[null,null,null,"Sum",null,{"$f":"SUM(F22:F25)","v":0}]
[null,null,null,"Discount",0.1,{"$f":"-(F26*E27)","v":0}]
[null,null,null,"Number of units",null,2]
[null,null,null,"Packing cost",null,20]
[null,null,null,"Transport cost",null,20]
[null,null,null,"TOTAL to pay",null,{"$f":"(F26+F27)*F28+F29+F30","v":40}]
[]
["XXXXXXXXXXXX"]
["XXXXXXXXXXXXXXXXXXXXXXXXXXXXXXXXXXXXXXXXXXXXXXXXXXXX"]
[]
["XXXXXXXX"]
["XXXXXXXXXXXXXXXXXXXXXXXXXXXXXXXXXXXXXXXXXXXXXXXXXXXXXXXXXXXXXXXXXXXXXXXXXXXXXXXXXXXXXXXXXXXXXXXXXXXXXXXXXXXXXXXXXXXXXXXXXXXXXXXXXXXXXXXXXXXXXXXXXXXXXXXXXXXXXXXXXXXXXXXXXXXXXXXXXXXXXXXXXXXXXXXXXXXXXXXXXXXXXXXXXXXXXXXXXXXXXXXXXXXXXXXXXXXXXXXXXXXXXXXXXXXXXXXXXXXXXXXXXXXXXXXXXXXXXXXXXXXXXXXXXXXXXXXXXXXXXXXXXXXXXXXXXXXXXXXXXXXXXXXXXXXXXXXXXXXXXXXXXXXXXXXXXXXXXXXXXXXXXXXXXXXXXXXXXXXXXXXXXXXXXXXXXXXXXXXX"]
[]
[]
[]
[]
[]
["XXXXXXXXXXXXXXXXXXXXX"]
["XXXXXXXXXXXXXXXXXXXXXXXXXXXXXXXX"]
["XXXXXXXXXXXXXXXXXXXXXXXXXXX"]
["XXXXXXXXXXXXXXXXXXXXXXXXXXXXXXXX"]
[]
["XXXXXXX"]
["XXXXXXXXXXXXXXX"]
[]
["XXXXXXXXXXXXXXXXXXXXXXXXXXXXXXX"]
["XXXXXXXXXXXXXXXXXXXXXXXXXXXXXXXXXXXXXXXXXXXXXXXXXXXXXXXXXXXXXXXXXXXXXXXXXXXXXXXXXXXXXXXXXXXXXXXXXXXXXXXXXXXXXXXXXXXXXXXXXXXXXXXXXXXXXXXXXXXXXXXXXXXXXXXXXXXXXXXXXXXXXXXXXXXXXXXXXXXXXXXXXXXXXXXXXXXXXXXXXXXXXXXXXXXXXXXXXXXXXXXXXXXXXXXXXXXXXXXXXXXXXXXXXXXXXXXXXXXXXXXXXXXXXXXXXXXXXXXXXXXXXXXXXXXXXXXXXXXXXXXX"]
[]
[]
[]
[]
[]
["XXXXXXXXXXXXXXXXXXXXXXXXXXXXXXXXXXXX"]
[]
["Best Rgds,"]
[]
["XXXXXXXXXXX"]

{"sheet":"Devise","index":3,"n_rows":13,"n_cols":7,"rows_kept":13,"cut":false,"hidden":false,"merged":[]}
[]
[null,null,null,null,null,null,"EU/USD"]
[null,"Euro","1.00 EUR","inv. 1.00 EUR",null,null,{"$f":"C4/1000000","v":1.11883}]
[null,"US Dollar",1118830,"0.893790"]
[null,"British Pound","0.875713",1141927,null,null,"Convertion rate is automatically actualised every 60 minutes"]
[null,"Indian Rupee",72058760,"0.013878"]
[null,"Australian Dollar",1469807,"0.680361"]
[null,"Canadian Dollar",1480997,"0.675221"]
[null,"Singapore Dollar",1548338,"0.645854"]
[null,"Swiss Franc",1089439,"0.917903"]
[null,"Malaysian Ringgit",4779011,"0.209248"]
[null,"Japanese Yen",124396442,"0.008039"]
[null,"Chinese Yuan Renminbi",7624541,"0.131155"]

{"sheet":"Pour tester","index":4,"n_rows":22,"n_cols":5,"rows_kept":22,"cut":false,"hidden":false,"merged":[]}
["PU infeed belts for cotton and no slippery garment","Std",1,null,{"$f":"D1*C1","v":0}]
["Continus runing infeed conveyor ","Std",1,null,0]
["Automatic folding and stacking with size measuring  sensor measuring individual garment length (Auto channel selection) ","Std",1,null,0]
["Direct adressing of stacker by 3 vertical photocells",30,1,null,0]
["Dual PU Belts and reflective sensor in Lateral instead of single PU belts ","Std",1,null,0]
["Dual High grip silicone belts and reflective sensor in lateral instead of single or double PU belts (slippery and color garment)",10,1,null,0]
["Removing - High/low pressure in lateral fold for fine tuning of sensitive or heavy/stiff garment like hoddies",-10,1,null,0]
["Removing - 2nd crossfold swingarm automatic opening for thick item folding",-20,1,null,0]
["Automatic reject of unexpected wide items","Std",1,null,0]
["Drop stacker 3 x1","Std",1,null,0]
["Drop stacker 0 x 1",-10,1,null,0]
["One Lift stacker instead of one drop stacker (option 410 or 411 or 412 must be selected) handle small items or underwear or sensitive to stack items  ",30,1,null,0]
["120 recipes instead of 50 ",5,1,null,0]
["Removing - of Productivity lights",-5,1,null,0]
["Backup via USB connector + battery (hold memory when machine is power off)","Std",1,null,0]
["Size labeler integrated in feeding (preprinted label)",15,1,null,0]
["external labeler (preprinted label)",10,1,null,0]
["Support for external labeler",2,1,null,0]
["3 meter conveyor for external labeler (320)",4,1,null,0]
["Stiffener inserter integrated in lateral fold",14,1,null,0]
["Service Engineer - working day",8,1,null,0]
["Service Engineer - travel time (hour)",10,1,null,0]